bitfinex/quotes_ETHUSD_20260202
["timestamp","ask_amount","ask_price","bid_price","bid_amount"]
[1769995639855,1.08278931,2311.2,2309.4,13.35040256]
[1769995640057,0.01324474,2310.8,2309.5,0.908]
[1769995640350,0.01324474,2310.7,2309.6,14.5]
[1769995640522,0.01324474,2311.0,2309.6,15.408]
[1769995640722,1.09507433,2310.9,2309.7,1.08239165]
[1769995640923,1.08182959,2310.9,2309.7,1.08239165]
[1769995641146,0.01324474,2310.7,2309.7,1.08239165]
[1769995641349,0.01324474,2310.7,2309.8,0.908]
[1769995641660,0.01324474,2310.7,2309.6,14.5]
[1769995641826,0.01324474,2310.7,2308.6,1.0828812]
[1769995641827,0.01324474,2309.8,2308.6,1.0828812]
[1769995642029,0.01324474,2309.4,2308.3,1.08303784]
[1769995642226,0.69223181,2310.2,2308.3,1.99103784]
[1769995642426,0.01324474,2310.2,2308.3,1.08303784]
[1769995642725,1.63740723,2310.8,2308.5,14.43335685]
[1769995642935,1.63740723,2310.8,2308.6,13.3636473]
[1769995642936,0.01324474,2310.6,2308.6,13.3636473]
[1769995643251,4.34131225,2310.7,2308.7,0.01324474]
[1769995643460,4.34131225,2310.7,2308.9,0.01324474]
[1769995643461,1.08192322,2310.7,2308.9,0.01324474]
[1769995643819,0.01324474,2310.6,2308.7,0.01324474]
[1769995644030,0.01324474,2310.5,2308.7,0.01324474]
[1769995644231,0.0011,2309.3,2308.7,0.01324474]
[1769995644442,0.0011,2309.5,2308.8,0.908]
[1769995644645,0.0011,2309.5,2308.9,0.908]
[1769995644836,1.08211054,2310.3,2309.0,1.08271979]
[1769995645234,1.08211054,2310.3,2309.0,1.99071979]
[1769995645453,0.54237975,2310.2,2309.0,1.99071979]
[1769995645679,1.08211054,2310.3,2309.0,1.99071979]
[1769995645962,0.0011,2310.5,2309.3,13.35040256]
[1769995646129,0.0011,2310.5,2309.4,0.01324474]
[1769995646468,0.0011,2310.5,2309.3,13.3636473]
[1769995646469,0.0011,2310.5,2309.5,0.908]
[1769995646834,0.0011,2310.5,2309.6,1.08243851]
[1769995647941,1.08279233,2311.2,2309.7,0.01324474]
[1769995648542,1.09603707,2311.2,2309.8,0.908]
[1769995648745,0.0011,2311.2,2309.9,1.08229793]
[1769995649338,0.0011,2311.2,2310.0,0.907]
[1769995650557,0.0011,2311.2,2309.9,1.08229793]
[1769995650729,1.08278916,2311.2,2309.8,4.32919173]
[1769995650933,1.0960339,2311.2,2309.8,4.32919173]
[1769995651158,0.01324474,2311.1,2309.8,4.32919173]
[1769995651358,0.55817274,2311.1,2309.8,4.32919173]
[1769995651665,0.55817274,2311.1,2309.5,4.32976267]
[1769995651865,0.55817274,2311.1,2308.4,4.34524685]
[1769995651866,0.01324474,2310.6,2308.6,13.3636473]
[1769995652164,0.01324474,2310.3,2309.2,1.08260126]
[1769995652457,0.01324474,2310.3,2309.3,1.08255271]
[1769995652669,0.01324474,2310.5,2309.5,1.08247451]
[1769995652835,1.08192322,2310.7,2308.9,4.33101998]
[1769995653032,0.01324474,2310.5,2308.9,4.33101998]
[1769995653229,0.01324474,2310.6,2308.9,4.33101998]
[1769995653453,0.01324474,2310.5,2308.9,4.33101998]
[1769995653840,0.54493503,2310.6,2308.9,4.33101998]
[1769995654343,1.08192322,2310.7,2309.0,0.01324474]
[1769995654539,4.32729729,2311.0,2309.3,0.01324474]
[1769995654934,0.0011,2311.2,2309.6,13.35040256]
[1769995655256,0.0011,2311.2,2310.1,0.01324474]
[1769995655569,0.0011,2311.2,2310.2,0.907]
[1769995655767,0.0011,2311.2,2310.0,0.01324474]
[1769995655768,1.08281057,2311.2,2309.4,1.08253225]
[1769995655954,0.0011,2311.2,2309.5,14.2706473]
[1769995656153,0.0011,2311.2,2310.1,0.01324474]
[1769995656878,0.0011,2311.2,2310.2,1.08215738]
[1769995657092,0.0011,2311.2,2310.3,0.907]
[1769995657586,1.08126811,2312.1,2310.3,0.907]
[1769995657587,0.0011,2311.7,2310.4,0.24681504]
[1769995657789,4.33774359,2312.5,2310.4,0.24681504]
[1769995657790,4.32334024,2313.1,2310.8,13.42843724]
[1769995658111,1.08075393,2313.2,2311.1,0.01324474]
[1769995658258,1.09399867,2313.2,2311.2,0.01324474]
[1769995658583,0.01324474,2312.9,2311.3,0.907]
[1769995659083,1.08089411,2312.9,2311.4,1.08159556]
[1769995659281,1.62134117,2312.9,2311.4,1.08159556]
[1769995659586,0.01324474,2312.8,2311.3,1.08163043]
[1769995659901,0.01324474,2312.7,2311.3,1.08163043]
[1769995660082,1.63458591,2312.9,2311.3,1.08163043]
[1769995660464,0.01324474,2312.7,2311.3,1.08163043]
[1769995660959,1.08098759,2312.7,2311.3,1.08163043]
[1769995661290,1.08095919,2312.8,2311.3,1.08163043]
[1769995661792,0.01324474,2312.7,2311.3,1.98863043]
[1769995662774,1.08095919,2312.8,2311.3,1.98863043]
[1769995662970,0.01324474,2313.1,2311.3,1.98863043]
[1769995663212,0.01324474,2313.0,2311.3,1.98863043]
[1769995663390,1.08075393,2313.2,2311.3,15.43031241]
[1769995663595,0.907,2313.6,2311.6,13.67525228]
[1769995663761,0.01324474,2314.0,2312.0,0.01324474]
[1769995663957,12.67050335,2313.9,2312.1,15.407]
[1769995664197,0.01324474,2313.8,2312.1,15.407]
[1769995664395,0.01324474,2313.7,2312.1,14.5]
[1769995664600,0.01324474,2313.1,2311.3,14.51006767]
[1769995664902,0.01324474,2313.2,2311.7,0.907]
[1769995665079,1.08052037,2313.7,2312.0,0.01324474]
[1769995665280,1.08052037,2313.7,2311.8,29.0230904]
[1769995666171,1.08052037,2313.7,2311.9,0.01324474]
[1769995666499,1.08052037,2313.7,2311.7,14.74506189]
[1769995666500,0.01324474,2313.2,2311.4,0.01324474]
[1769995666797,14.88074292,2313.4,2311.7,1.08144694]
[1769995666990,1.09395195,2313.3,2311.9,1.08136165]
[1769995667186,2.02975237,2313.2,2311.9,1.08136165]
[1769995667803,1.98768662,2313.4,2312.0,0.01324474]
[1769995668104,1.80598605,2313.6,2312.0,14.51324474]
[1769995668281,13.96049818,2313.9,2312.2,0.01324474]
[1769995668282,1.08047367,2313.8,2312.2,0.01324474]
[1769995668482,1.08047367,2313.8,2312.3,0.907]
[1769995668678,0.01324474,2313.7,2311.9,1.08136165]
[1769995668870,13.97374292,2313.7,2312.0,14.5]
[1769995669071,13.97374292,2313.7,2312.1,1.08126811]
[1769995669072,1.08061378,2313.5,2312.1,1.08126811]
[1769995669289,0.54030689,2313.4,2312.1,1.08126811]
[1769995669702,0.54030689,2313.4,2311.2,9.51242819]
[1769995669903,0.01324474,2313.3,2311.8,1.08140372]
[1769995670311,13.97374292,2313.0,2311.4,1.08158827]
[1769995670605,0.01324474,2312.9,2311.5,1.08152684]
[1769995670775,0.01324474,2312.9,2311.6,1.08149987]
[1769995670975,1.08089411,2312.9,2311.4,14.5]
[1769995671177,1.08089411,2312.9,2311.5,1.08154877]
[1769995671476,1.08089411,2312.9,2311.6,0.01324474]
[1769995671675,1.08075393,2313.2,2311.7,0.01324474]
[1769995671910,1.08075393,2313.2,2311.5,1.09479351]
[1769995672612,1.08075393,2313.2,2311.6,0.01324474]
[1769995672818,15.04125211,2313.2,2311.5,1.08154877]
[1769995672983,1.08084738,2313.0,2311.5,1.08154877]
[1769995673174,1.93779798,2312.9,2311.5,1.08154877]
[1769995673813,1.93779798,2312.9,2311.4,14.5]
[1769995673976,0.01324474,2312.7,2311.2,1.08168327]
[1769995674178,0.01324474,2312.6,2311.0,1.081759]
[1769995674505,13.96049818,2312.3,2311.1,1.08170912]
[1769995674710,0.01324474,2312.6,2311.4,1.08158753]
[1769995674711,1.49072324,2312.6,2311.4,1.08158753]
[1769995674878,0.907,2312.7,2311.4,1.08158753]
[1769995675075,1.08103433,2312.6,2311.3,2.0018871]
[1769995675281,15.04153251,2312.6,2311.0,5.24731638]
[1769995675504,15.04153251,2312.6,2311.0,4.34031638]
[1769995675735,2.02726698,2312.5,2311.2,1.08166626]
[1769995676412,1.08103433,2312.6,2311.5,0.01324474]
[1769995676588,1.08103433,2312.6,2311.6,0.01324474]
[1769995676779,1.08084738,2313.0,2311.7,0.01324474]
[1769995677218,1.08084738,2313.0,2311.9,0.01324474]
[1769995677504,4.32251766,2313.5,2312.4,0.01324474]
[1769995677710,4.8629408,2313.5,2312.4,0.01324474]
[1769995677912,0.67898707,2314.1,2313.0,0.01324474]
[1769995678077,4.32023436,2314.7,2313.0,0.01324474]
[1769995678586,4.32007568,2314.9,2313.4,0.01324474]
[1769995678587,1.07996025,2314.9,2313.4,0.01324474]
[1769995678906,1.07996025,2314.9,2313.1,14.5]
[1769995679074,4.31968808,2315.0,2313.3,1.08070721]
[1769995679475,18.293431,2315.0,2313.3,1.08070721]
[1769995679889,4.31968808,2315.0,2313.3,1.09395195]
[1769995680593,4.31968808,2315.0,2313.4,0.01324474]
[1769995680789,0.53996017,2314.9,2313.4,0.01324474]
[1769995680989,0.53996017,2314.9,2313.5,0.01324474]
[1769995681187,1.98675981,2315.4,2313.8,0.01324474]
[1769995681406,1.98673486,2315.4,2314.0,0.01324474]
[1769995681611,1.98675098,2315.4,2313.7,1.08052037]
[1769995681812,1.99999572,2315.4,2313.7,1.08052037]
[1769995681980,0.01324474,2315.1,2313.6,1.08054649]
[1769995682184,14.60695778,2315.3,2313.6,1.08054649]
[1769995682185,14.59371304,2315.3,2313.6,1.08054649]
[1769995682516,14.60695778,2315.3,2313.6,1.08054649]
[1769995683202,13.97374292,2314.8,2313.3,1.08067351]
[1769995683384,13.97374292,2314.8,2313.2,1.0807422]
[1769995683385,14.87974292,2314.7,2313.2,1.0807422]
[1769995683579,15.46304169,2314.6,2313.1,14.5]
[1769995683808,0.01324474,2314.4,2312.5,0.906]
[1769995684011,0.01324474,2314.4,2311.7,4.32666001]
[1769995684012,13.96049818,2313.7,2311.7,4.32666001]
[1769995684214,13.96049818,2313.2,2311.7,0.001]
[1769995684382,13.96049818,2313.2,2311.7,1.08245305]
[1769995684582,2.30337429,2313.6,2311.7,1.09569779]
[1769995684810,2.30337429,2313.6,2311.9,0.01324474]
[1769995685183,1.08061378,2313.5,2312.1,0.01324474]
[1769995685384,1.08029459,2314.2,2312.6,0.01324474]
[1769995685586,1.71516206,2314.6,2313.0,0.01324474]
[1769995685587,1.08014689,2314.5,2313.0,0.01324474]
[1769995685803,1.08014689,2314.5,2313.2,0.01324474]
[1769995686014,1.08012974,2314.6,2313.3,14.5]
[1769995686192,1.7108766,2314.6,2313.3,14.51324474]
[1769995686394,1.7108766,2314.6,2313.4,0.01324474]
[1769995686582,1.7108766,2314.6,2313.3,0.01324474]
[1769995687003,1.7108766,2314.6,2313.4,14.5]
[1769995687203,1.7108766,2314.6,2312.8,1.08094085]
[1769995687404,2.09108583,2314.5,2312.8,1.08094085]
[1769995687688,13.19527253,2314.4,2312.7,1.08095815]
[1769995688003,13.18202779,2314.0,2312.0,0.01324474]
[1769995688230,0.906,2313.9,2312.7,1.08098265]
[1769995688514,1.40880278,2313.8,2312.2,0.01324474]
[1769995688733,2.09108583,2314.5,2312.8,0.01324474]
[1769995688886,2.09108583,2314.5,2313.0,0.01324474]
[1769995689093,2.6168766,2314.6,2313.1,14.5]
[1769995689287,2.6168766,2314.6,2313.1,15.58077352]
[1769995690317,15.79890439,2314.6,2313.0,1.08084478]
[1769995690520,0.01324474,2313.1,2311.7,0.001]
[1769995690700,13.18202779,2313.3,2311.7,0.001]
[1769995690901,0.906,2313.0,2311.7,0.001]
[1769995691095,0.906,2313.0,2311.7,1.08243691]
[1769995691415,4.32266701,2313.4,2312.0,0.01324474]
[1769995691617,5.22730299,2314.2,2312.4,0.01324474]
[1769995691792,0.63075899,2314.1,2312.6,0.01324474]
[1769995691994,0.63075899,2314.1,2312.5,0.01324474]
[1769995692316,0.63075899,2314.1,2312.6,14.51324474]
[1769995692617,0.63075899,2314.1,2312.8,0.01324474]
[1769995693201,0.63075899,2314.1,2312.9,14.5]
[1769995693396,0.63075899,2314.1,2312.9,15.58086431]
[1769995693397,1.66618649,2314.0,2312.9,15.58086431]
[1769995693617,1.66618649,2314.0,2312.9,15.58089049]
[1769995693821,1.08034469,2314.1,2312.9,15.58089049]
[1769995694020,1.98629001,2314.2,2313.0,0.01324474]
[1769995694320,0.906,2314.2,2313.0,0.01324474]
[1769995694578,0.0011,2314.8,2313.3,0.01324474]
[1769995694852,1.08111011,2314.8,2313.4,0.01324474]
[1769995695045,1.62122389,2314.8,2313.5,0.01324474]
[1769995695230,0.0011,2314.8,2313.7,1.08052037]
[1769995697224,0.0011,2314.8,2314.0,1.08038029]
[1769995697454,0.0011,2314.8,2313.8,1.0804384]
[1769995697759,0.0011,2314.8,2313.9,1.08042152]
[1769995698114,0.0011,2314.8,2313.9,1.09366626]
[1769995698536,0.0011,2314.8,2314.0,0.01324474]
[1769995698736,1.07966885,2315.6,2314.3,0.01324474]
[1769995698945,0.01324474,2316.3,2314.3,0.01324474]
[1769995698946,1.15374771,2316.9,2315.1,23.3841741]
[1769995699146,1.07892036,2317.2,2315.2,16.93725388]
[1769995699445,5.23390188,2317.7,2316.3,0.01324474]
[1769995699446,1.18682281,2317.6,2316.3,0.01324474]
[1769995700224,1.18682281,2317.6,2315.6,1.07963378]
[1769995700225,0.01324474,2317.3,2315.6,1.07963378]
[1769995700442,0.01324474,2317.0,2315.6,1.07963378]
[1769995700653,0.01324474,2316.8,2315.3,4.31895852]
[1769995700948,0.01324474,2316.3,2315.0,1.07988374]
[1769995701145,0.01324474,2316.2,2314.9,1.07993489]
[1769995701318,0.01324474,2316.4,2314.6,0.906]
[1769995701516,1.07912116,2316.7,2314.7,14.14148016]
[1769995701763,1.07912116,2316.7,2314.8,13.9211546]
[1769995702456,1.07912116,2316.7,2315.0,0.01324474]
[1769995702653,1.70927318,2316.7,2315.0,0.01324474]
[1769995702857,1.70927318,2316.7,2314.9,0.01324474]
[1769995703359,1.70927318,2316.7,2315.0,1.09315834]
[1769995703862,0.01324474,2317.3,2315.0,1.09315834]
[1769995703863,1.07874865,2317.5,2315.6,13.90790986]
[1769995704154,0.01324474,2317.4,2315.7,0.906]
[1769995704344,0.01324474,2317.4,2315.5,0.01324474]
[1769995704345,0.01324474,2317.2,2315.1,13.9211546]
[1769995704525,0.01324474,2317.0,2315.5,0.906]
[1769995704729,0.01324474,2316.5,2315.0,1.0799136]
[1769995704953,0.01324474,2316.5,2314.5,13.90790986]
[1769995704954,0.01324474,2316.2,2314.5,13.90790986]
[1769995705155,0.01324474,2316.1,2314.8,1.08000271]
[1769995705363,1.09247401,2316.5,2314.7,4.31984102]
[1769995705545,0.01324474,2317.5,2314.8,0.01324474]
[1769995705546,1.07912116,2316.7,2314.8,0.01324474]
[1769995705783,0.5408809,2316.6,2314.8,0.01324474]
[1769995706067,0.01324474,2316.3,2314.7,4.31984102]
[1769995706233,0.01324474,2316.5,2314.7,4.31984102]
[1769995706436,0.55412564,2316.6,2314.7,4.31984102]
[1769995706652,0.01324474,2316.5,2314.7,4.31984102]
[1769995707162,0.01324474,2316.4,2314.6,1.09334497]
[1769995707344,1.07949393,2315.9,2314.6,1.08010023]
[1769995707744,0.01324474,2315.6,2313.8,4.32183471]
[1769995707974,0.01324474,2315.6,2313.6,1.08053563]
[1769995707975,0.01324474,2315.0,2313.6,1.08053563]
[1769995708131,0.01324474,2314.7,2313.4,0.001]
[1769995708335,0.01324474,2314.9,2313.7,1.08049165]
[1769995708536,0.905,2315.0,2314.3,4.32090769]
[1769995708733,1.07949393,2315.9,2314.5,1.08014214]
[1769995708963,0.01324474,2315.6,2314.5,1.08011434]
[1769995709139,0.01324474,2315.4,2314.1,1.08029647]
[1769995709467,0.01324474,2314.9,2313.4,0.001]
[1769995709662,0.54393022,2314.9,2313.4,0.001]
[1769995709866,1.07985882,2315.2,2313.5,0.01324474]
[1769995710079,1.07985882,2315.2,2313.4,0.01424474]
[1769995710442,1.07985882,2315.2,2313.8,0.001]
[1769995710659,0.01324474,2315.0,2313.8,0.001]
[1769995710843,1.07985882,2315.2,2313.8,0.001]
[1769995711050,0.53990128,2315.1,2313.8,0.001]
[1769995711575,0.01324474,2314.9,2313.8,0.001]
[1769995711731,0.01324474,2314.6,2313.8,0.001]
[1769995711935,0.01324474,2314.9,2313.8,0.001]
[1769995712136,1.0799136,2315.0,2313.8,0.001]
[1769995712369,0.5952714,2314.9,2313.8,0.001]
[1769995712550,1.0799136,2315.0,2313.8,0.001]
[1769995712745,0.01324474,2314.9,2313.8,0.001]
[1769995712945,0.01324474,2314.8,2313.8,0.001]
[1769995713152,0.01324474,2314.9,2313.8,0.001]
[1769995713350,0.01324474,2314.7,2313.8,0.001]
[1769995713559,1.08010023,2314.6,2313.8,0.001]
[1769995714768,2.58289353,2314.9,2313.8,0.001]
[1769995715068,1.99821792,2314.9,2313.8,0.001]
[1769995715458,1.98497318,2314.9,2313.8,0.001]
[1769995716087,1.98497318,2314.9,2313.4,0.001]
[1769995716088,0.01324474,2314.5,2313.4,0.001]
[1769995716367,0.01324474,2314.6,2313.4,0.001]
[1769995716560,0.01324474,2314.3,2313.4,0.001]
[1769995716761,1.33542094,2314.6,2313.4,0.001]
[1769995716956,0.01324474,2314.6,2313.4,0.001]
[1769995717150,0.01324474,2314.7,2313.4,0.001]
[1769995717551,17.51511355,2315.2,2313.4,0.001]
[1769995717741,0.01324474,2314.8,2313.4,0.001]
[1769995718076,0.01324474,2314.6,2313.4,0.001]
[1769995718384,0.01324474,2314.6,2312.8,4.33626047]
[1769995718385,13.32970144,2314.3,2312.8,1.08094085]
[1769995718567,13.32970144,2314.3,2312.0,4.32525071]
[1769995718568,0.01324474,2313.8,2312.0,4.32525071]
[1769995718867,0.906,2313.8,2312.7,1.08098517]
[1769995719282,0.906,2314.4,2312.7,1.08098517]
[1769995719643,4.31966949,2315.0,2313.0,0.01324474]
[1769995719838,1.92691858,2314.9,2313.2,0.01324474]
[1769995720244,4.8595557,2315.1,2313.2,0.01324474]
[1769995720245,0.53990128,2315.1,2313.5,0.01324474]
[1769995720441,0.906,2315.2,2313.6,0.01324474]
[1769995720642,4.31818959,2315.8,2313.8,0.01324474]
[1769995720842,4.31818959,2315.8,2313.9,0.01324474]
[1769995721062,4.33143433,2315.8,2313.7,13.81246242]
[1769995721240,0.63302196,2315.7,2313.9,0.01324474]
[1769995721676,1.07963378,2315.6,2314.0,1.08038029]
[1769995722458,0.01324474,2315.5,2314.0,1.08038029]
[1769995723177,1.07963378,2315.6,2314.0,1.08038029]
[1769995723492,0.01324474,2316.1,2314.0,1.08038029]
[1769995723493,4.31717944,2316.4,2314.4,13.81246242]
[1769995723777,1.08036092,2316.5,2314.6,1.09334497]
[1769995723982,0.01324474,2316.3,2314.6,1.08010023]
[1769995724177,0.0011,2315.6,2314.6,1.08010023]
[1769995724591,0.0011,2315.6,2314.0,4.32137605]
[1769995724893,0.01324474,2315.5,2314.4,1.08018685]
[1769995725061,0.01324474,2315.5,2314.2,4.32111351]
[1769995725062,0.01324474,2315.5,2314.3,1.08020826]
[1769995725266,0.0011,2315.6,2314.5,1.0801181]
[1769995725589,0.0011,2315.6,2314.5,14.89258052]
[1769995725764,1.08031772,2316.5,2314.8,13.81246242]
[1769995725962,1.07921772,2316.5,2314.9,0.01324474]
[1769995726178,1.07921772,2316.5,2315.0,0.01324474]
[1769995726379,0.53958953,2316.4,2315.0,0.01324474]
[1769995726580,1.07921772,2316.5,2315.0,0.01324474]
[1769995727882,1.07912116,2316.7,2315.0,1.0799136]
[1769995728083,0.01324474,2316.4,2315.0,1.0799136]
[1769995728391,0.01324474,2316.3,2314.9,1.07994518]
[1769995728896,0.01324474,2316.2,2314.9,1.07994518]
[1769995729066,0.01324474,2316.6,2314.9,1.07994518]
[1769995729597,0.01324474,2316.5,2314.9,1.07994518]
[1769995729961,0.01324474,2316.4,2314.8,4.31984102]
[1769995730164,0.01324474,2315.8,2313.7,17.36268667]
[1769995730365,0.01324474,2315.3,2314.1,1.08030787]
[1769995730586,0.01324474,2315.1,2313.6,0.001]
[1769995730794,0.01324474,2315.1,2314.0,1.08035773]
[1769995731092,0.01324474,2315.4,2314.3,1.08021428]
[1769995731266,13.69633722,2315.6,2314.6,1.08008014]
[1769995731462,1.3709582,2315.5,2314.7,1.08004404]
[1769995731686,0.905,2315.9,2314.7,1.08004404]
[1769995731897,1.07912116,2316.7,2314.7,14.60591242]
[1769995732096,1.0923659,2316.7,2314.7,14.61915716]
[1769995732399,1.07912116,2316.7,2314.9,0.01324474]
[1769995733282,1.07912116,2316.7,2315.0,0.01324474]
[1769995733480,0.53954372,2316.6,2314.9,24.0272132]
[1769995733682,0.53954372,2316.6,2314.7,1.09328878]
[1769995733683,0.01324474,2316.5,2314.7,1.09328878]
[1769995733881,1.07921433,2316.5,2314.7,14.61915716]
[1769995734284,0.01324474,2316.2,2314.7,1.08004404]
[1769995734492,0.01324474,2315.8,2314.5,4.32052485]
[1769995734801,0.01324474,2315.2,2314.2,1.08025032]
[1769995735003,0.91824474,2316.0,2313.9,0.905]
[1769995735170,0.01324474,2315.4,2314.1,4.32121186]
[1769995735374,0.91824474,2316.0,2314.7,1.08002339]
[1769995736178,1.09278528,2315.9,2314.0,17.84736525]
[1769995736379,0.01324474,2315.6,2314.0,17.84736525]
[1769995736581,0.01324474,2315.5,2314.0,4.32149687]
[1769995736781,0.01324474,2315.6,2314.0,4.32149687]
[1769995737106,0.63290058,2315.8,2314.1,13.84996035]
[1769995737285,1.07954054,2315.9,2314.2,23.55198381]
[1769995737487,1.07954054,2315.9,2314.2,23.53873907]
[1769995738104,1.98447368,2316.0,2314.3,14.93020059]
[1769995738606,1.99771842,2316.0,2314.3,14.93020059]
[1769995738902,0.01324474,2315.8,2314.3,14.93020059]
[1769995739077,0.01324474,2315.8,2314.5,0.001]
[1769995739277,0.01324474,2315.7,2314.5,0.001]
[1769995739492,0.01324474,2315.5,2314.5,0.001]
[1769995739891,0.01324474,2315.8,2314.5,0.001]
[1769995740096,1.07958716,2315.7,2314.5,0.001]
[1769995740293,1.62070522,2315.7,2314.5,0.001]
[1769995740499,1.07958716,2315.7,2314.5,0.001]
[1769995740704,0.905,2316.0,2314.5,13.85096035]
[1769995741021,13.93875711,2316.8,2314.5,13.85096035]
[1769995741022,0.01324474,2318.1,2316.0,13.84996035]
[1769995741235,2.32074016,2318.6,2316.0,13.84996035]
[1769995741236,0.00819349,2319.0,2317.0,9.68877872]
[1769995741383,1.15374771,2320.3,2318.4,13.84996035]
[1769995741586,1.07729122,2320.7,2318.6,13.84996035]
[1769995741919,0.01324474,2319.5,2318.0,13.84996035]
[1769995742210,0.01324474,2319.5,2317.8,9.68877872]
[1769995742211,0.01324474,2319.1,2317.8,1.07859799]
[1769995742415,0.01324474,2319.0,2317.7,4.3144361]
[1769995742612,0.01324474,2319.4,2317.8,15.83356712]
[1769995742812,0.01324474,2319.4,2317.7,4.3144361]
[1769995742813,0.01324474,2318.9,2316.9,4.31601173]
[1769995743043,0.01324474,2318.9,2316.6,3.25453568]
[1769995743044,0.01324474,2317.8,2316.6,3.25453568]
[1769995743354,0.01324474,2318.2,2316.6,3.25453568]
[1769995743355,0.01324474,2319.0,2316.6,4.33369472]
[1769995743478,0.01324474,2318.1,2316.6,4.33369472]
[1769995743683,13.92551237,2318.9,2316.6,4.33369472]
[1769995743884,0.01324474,2318.2,2316.6,4.33369472]
[1769995744305,0.01324474,2318.3,2316.6,4.33369472]
[1769995744486,0.01324474,2317.4,2316.6,3.25453568]
[1769995744818,0.01324474,2317.2,2316.0,4.31763942]
[1769995745124,0.01324474,2317.2,2315.8,4.3180054]
[1769995745125,0.01324474,2316.9,2315.8,4.3180054]
[1769995745290,0.01324474,2317.2,2315.9,1.07946254]
[1769995745492,4.31331953,2318.7,2316.4,1.07923457]
[1769995745493,0.54181794,2318.3,2316.4,1.07923457]
[1769995745812,0.01324474,2317.0,2315.7,0.22556204]
[1769995746015,0.01324474,2316.8,2315.7,0.22556204]
[1769995746215,0.01324474,2316.6,2315.7,0.22556204]
[1769995746388,0.01324474,2316.2,2315.7,0.22556204]
[1769995746587,0.01324474,2316.2,2314.5,0.001]
[1769995746588,0.01324474,2316.1,2314.5,0.001]
[1769995746820,0.01324474,2316.2,2315.1,1.07983861]
[1769995746983,0.01324474,2316.1,2315.1,1.07986235]
[1769995747180,0.01324474,2316.1,2315.3,1.07977069]
[1769995747386,0.01324474,2316.2,2315.0,1.07987187]
[1769995747588,0.01324474,2316.2,2314.6,4.32033427]
[1769995747812,0.01324474,2316.3,2315.2,1.07980173]
[1769995748015,0.01324474,2316.3,2315.1,4.31941027]
[1769995748190,1.07940071,2316.1,2314.5,0.001]
[1769995748596,1.07913209,2316.7,2315.0,0.01324474]
[1769995748784,1.07913209,2316.7,2314.8,13.71275429]
[1769995748987,1.09237683,2316.7,2314.8,13.71275429]
[1769995749216,1.07905737,2316.9,2315.1,0.01324474]
[1769995749419,1.07884175,2317.3,2315.4,0.01324474]
[1769995750138,0.01324474,2317.2,2315.6,1.07963378]
[1769995750295,0.01324474,2316.5,2315.1,1.07982558]
[1769995750616,0.01324474,2316.3,2314.5,0.001]
[1769995750788,0.01324474,2316.1,2315.2,1.07978908]
[1769995750997,0.01324474,2316.1,2314.9,1.07993169]
[1769995751233,0.01324474,2316.4,2315.4,1.07972131]
[1769995751421,0.01324474,2316.3,2315.5,1.07967584]
[1769995751735,0.01324474,2317.3,2315.5,1.07967584]
[1769995751935,0.01324474,2317.0,2315.5,1.07967584]
[1769995752311,1.07892155,2317.2,2315.4,4.31872165]
[1769995752639,1.09216629,2317.2,2315.4,4.31872165]
[1769995752805,4.31503766,2317.5,2315.5,13.72599903]
[1769995753005,1.07872817,2317.6,2315.7,0.01324474]
[1769995753207,0.01324474,2317.3,2315.4,4.31872165]
[1769995753408,0.01324474,2317.4,2315.5,0.2335703]
[1769995753647,1.07872817,2317.6,2315.7,13.72599903]
[1769995753830,0.01324474,2317.5,2315.7,13.71275429]
[1769995754007,0.01324474,2317.3,2315.7,13.71275429]
[1769995754205,0.01324474,2317.0,2315.4,1.07972704]
[1769995754425,0.01324474,2316.6,2315.4,1.07972704]
[1769995754645,0.01324474,2316.4,2315.3,0.001]
[1769995754832,0.01324474,2316.2,2315.3,0.001]
[1769995755037,0.01324474,2315.9,2315.3,0.001]
[1769995755253,0.01324474,2316.1,2315.0,1.08087814]
[1769995755408,0.01324474,2315.9,2315.0,0.001]
[1769995755605,0.01324474,2315.3,2314.5,0.001]
[1769995755834,0.01324474,2314.7,2313.6,0.001]
[1769995756105,0.01324474,2315.0,2313.7,1.08051602]
[1769995756311,0.01324474,2314.6,2313.6,0.001]
[1769995756823,1.99820499,2314.9,2313.6,0.001]
[1769995757024,1.09320499,2314.9,2313.8,1.08044722]
[1769995757224,5.23808576,2315.0,2313.8,1.08044722]
[1769995757225,0.905,2315.0,2313.8,1.08044722]
[1769995757939,0.01324474,2315.4,2313.8,1.08044722]
[1769995758323,0.01324474,2315.4,2313.7,4.3219975]
[1769995758324,1.07978868,2315.3,2313.7,4.3219975]
[1769995758524,1.07966648,2315.6,2313.7,18.03475179]
[1769995758724,1.09291122,2315.6,2313.7,18.03475179]
[1769995759036,0.01324474,2315.5,2313.7,18.03475179]
[1769995759222,1.07966648,2315.6,2313.7,18.03475179]
[1769995759426,0.01324474,2315.6,2313.8,13.71275429]
[1769995759952,1.99785618,2315.7,2313.8,13.71275429]
[1769995760110,0.01324474,2315.6,2313.8,13.71275429]
[1769995760311,1.07968041,2315.5,2313.9,1.08042698]
[1769995760634,1.09288368,2315.6,2313.9,1.08042698]
[1769995760808,1.98459607,2315.7,2313.9,14.79318127]
[1769995761010,0.01324474,2315.6,2313.9,14.79318127]
[1769995761210,0.905,2315.7,2313.9,14.79318127]
[1769995761707,1.07936834,2316.2,2314.1,13.71275429]
[1769995761908,1.09231932,2316.8,2314.5,13.72599903]
[1769995762237,1.09227275,2316.9,2314.9,0.01324474]
[1769995762434,0.01324474,2316.6,2314.8,13.71275429]
[1769995762747,0.01324474,2316.8,2314.8,13.71275429]
[1769995763044,0.01324474,2316.8,2314.9,13.72599903]
[1769995763230,0.01324474,2316.9,2314.9,13.72599903]
[1769995763411,1.98396139,2317.1,2315.2,0.01324474]
[1769995763612,1.98396139,2317.1,2315.3,0.905]
[1769995764056,1.99720613,2317.1,2315.3,0.905]
[1769995764344,1.07915549,2316.7,2315.4,1.07972704]
[1769995764510,4.32941847,2316.9,2315.4,1.07972704]
[1769995764511,1.09234479,2316.8,2315.4,1.07972704]
[1769995764715,0.01324474,2316.3,2315.4,1.07972704]
[1769995764922,0.01324474,2316.2,2315.4,1.07972704]
[1769995765120,0.01324474,2316.4,2315.4,1.07972704]
[1769995765310,1.07910005,2316.8,2315.4,1.07972704]
[1769995765510,4.31629834,2316.9,2315.4,1.07972704]
[1769995765511,1.07904898,2316.9,2315.4,1.07972704]
[1769995765949,1.09229372,2316.9,2315.4,1.07972704]
[1769995766166,0.0011,2316.4,2315.4,1.07972704]
[1769995766331,0.0011,2316.4,2315.3,4.31890818]
[1769995767863,0.0011,2316.4,2315.2,4.31890818]
[1769995768627,0.0011,2316.4,2315.1,1.07982031]
[1769995768826,0.01324474,2316.0,2314.7,4.32019676]
[1769995769131,0.01324474,2315.5,2314.5,0.001]